[Event "*** SCC Grand Prix: Titled Tuesday Blitz"]
[Site "Chess.com"]
[Date "2020.07.07"]
[Round "6"]
[White "Konavets"]
[Black "Elshan1985"]
[Result "1/2-1/2"]
[WhiteElo "2959"]
[BlackElo "2844"]
[TimeControl "180+1"]
[EndTime "11:06:11 PDT"]
[Termination "Game drawn by agreement"]

1. c4 {[%clk 0:03:00.9]} 1... Nf6 {[%clk 0:02:53.9]} 2. Nc3 {[%clk 0:03:00.3]}
2... e6 {[%clk 0:02:53.9]} 3. Nf3 {[%clk 0:02:58.1]} 3... d5 {[%clk 0:02:53.9]}
4. e3 {[%clk 0:02:58.7]} 4... Nbd7 {[%clk 0:02:51.7]} 5. Qc2 {[%clk 0:02:57]}
5... a6 {[%clk 0:02:50.8]} 6. b3 {[%clk 0:02:57.1]} 6... b6 {[%clk 0:02:49.6]}
7. Bb2 {[%clk 0:02:57]} 7... Bb7 {[%clk 0:02:50.2]} 8. Be2 {[%clk 0:02:57.4]}
8... Bd6 {[%clk 0:02:49.2]} 9. O-O {[%clk 0:02:52.8]} 9... O-O {[%clk
0:02:45.9]} 10. Rac1 {[%clk 0:02:52.6]} 10... Ne4 {[%clk 0:02:41.8]} 11. d3
{[%clk 0:02:45.5]} 11... Nxc3 {[%clk 0:02:41.2]} 12. Qxc3 {[%clk 0:02:46.4]}
12... Qf6 {[%clk 0:02:37.5]} 13. Qxf6 {[%clk 0:02:43.9]} 13... Nxf6 {[%clk
0:02:38.4]} 14. cxd5 {[%clk 0:02:41.1]} 14... Nxd5 {[%clk 0:02:36.2]} 15. a3
{[%clk 0:02:40]} 15... c5 {[%clk 0:02:34.2]} 16. Nd2 {[%clk 0:02:39.8]} 16...
Rfd8 {[%clk 0:02:29.4]} 17. Rc2 {[%clk 0:02:38.6]} 17... Rab8 {[%clk 0:02:21.9]}
18. Rfc1 {[%clk 0:02:38.5]} 18... Be7 {[%clk 0:02:17]} 19. Bf3 {[%clk
0:02:36.4]} 19... Nf6 {[%clk 0:02:10.6]} 20. Be2 {[%clk 0:02:32]} 20... Nd5
{[%clk 0:02:09.2]} 21. Ne4 {[%clk 0:02:31.3]} 21... f5 {[%clk 0:02:07.1]} 22.
Nd2 {[%clk 0:02:30.6]} 22... Bf6 {[%clk 0:02:03.2]} 23. Nc4 {[%clk 0:02:29.2]}
23... Bxb2 {[%clk 0:02:02]} 24. Rxb2 {[%clk 0:02:30.1]} 24... Ba8 {[%clk
0:01:59.1]} 25. Rbc2 {[%clk 0:02:28.5]} 25... Ne7 {[%clk 0:01:57.5]} 26. Ne5
{[%clk 0:02:09.9]} 26... a5 {[%clk 0:01:47]} 27. h4 {[%clk 0:02:01.3]} 27... Ng6
{[%clk 0:01:46.3]} 28. Nxg6 {[%clk 0:01:57]} 28... hxg6 {[%clk 0:01:47.2]} 29.
b4 {[%clk 0:01:57.1]} 29... cxb4 {[%clk 0:01:42]} 30. axb4 {[%clk 0:01:58]}
30... a4 {[%clk 0:01:42.3]} 31. d4 {[%clk 0:01:33.4]} 31... Bd5 {[%clk
0:01:40.3]} 32. Bb5 {[%clk 0:01:31.8]} 32... a3 {[%clk 0:01:36.6]} 33. Bc4
{[%clk 0:01:31.9]} 33... Ra8 {[%clk 0:01:26.3]} 34. Bxd5 {[%clk 0:01:01]} 34...
Rxd5 {[%clk 0:01:27.2]} 35. Ra2 {[%clk 0:01:00.9]} 35... e5 {[%clk 0:01:19.4]}
36. dxe5 {[%clk 0:00:54.8]} 36... Rxe5 {[%clk 0:01:20.3]} 37. Rc3 {[%clk
0:00:52.2]} 37... Re4 {[%clk 0:01:20.8]} 38. g3 {[%clk 0:00:49.2]} 38... Rxb4
{[%clk 0:01:20.7]} 39. Rcxa3 {[%clk 0:00:49.6]} 39... Rxa3 {[%clk 0:01:21.2]}
40. Rxa3 {[%clk 0:00:50.5]} 40... Kf7 {[%clk 0:01:21.3]} 41. Kg2 {[%clk
0:00:50.8]} 41... Kf6 {[%clk 0:01:21.8]} 42. Ra7 {[%clk 0:00:50.8]} 42... Rb2
{[%clk 0:01:19.1]} 43. Rb7 {[%clk 0:00:51]} 43... b5 {[%clk 0:01:16.9]} 44. Rb6+
{[%clk 0:00:46.9]} 44... Kf7 {[%clk 0:01:16.8]} 45. g4 {[%clk 0:00:47.6]} 45...
b4 {[%clk 0:01:13.4]} 46. h5 {[%clk 0:00:41.4]} 46... gxh5 {[%clk 0:01:13]} 47.
gxf5 {[%clk 0:00:41.2]} 47... b3 {[%clk 0:01:07.4]} 48. e4 {[%clk 0:00:41]}
48... h4 {[%clk 0:01:03.8]} 49. e5 {[%clk 0:00:40.4]} 49... Re2 {[%clk
0:01:00.6]} 50. Rb7+ {[%clk 0:00:32.2]} 50... Kf8 {[%clk 0:00:59.7]} 51. e6
{[%clk 0:00:31.6]} 51... b2 {[%clk 0:00:54.1]} 52. Kh3 {[%clk 0:00:22.7]} 52...
Rxf2 {[%clk 0:00:51.6]} 53. Kxh4 {[%clk 0:00:19.9]} 53... Rxf5 {[%clk
0:00:51.3]} 54. Rxb2 {[%clk 0:00:19.2]} 54... Ke7 {[%clk 0:00:51.5]} 55. Rb7+
{[%clk 0:00:18.8]} 55... Kxe6 {[%clk 0:00:52.1]} 56. Rxg7 {[%clk 0:00:19]}
1/2-1/2

[Event "*** SCC Grand Prix: Titled Tuesday Blitz"]
[Site "Chess.com"]
[Date "2020.07.07"]
[Round "6"]
[White "Artem_Sadovsky"]
[Black "SHIVACalypso"]
[Result "1-0"]
[WhiteElo "2533"]
[BlackElo "2347"]
[TimeControl "180+1"]
[EndTime "11:06:11 PDT"]
[Termination "Artem_Sadovsky won by resignation"]

1. Nf3 {[%clk 0:02:51.7]} 1... Nf6 {[%clk 0:02:58.6]} 2. g3 {[%clk 0:02:52.1]}
2... e6 {[%clk 0:02:58.3]} 3. Bg2 {[%clk 0:02:53]} 3... d5 {[%clk 0:02:58.7]} 4.
O-O {[%clk 0:02:53.9]} 4... Be7 {[%clk 0:02:59.2]} 5. c3 {[%clk 0:02:54.2]} 5...
O-O {[%clk 0:02:59.1]} 6. d3 {[%clk 0:02:50.7]} 6... c5 {[%clk 0:02:58.1]} 7.
Qc2 {[%clk 0:02:51.6]} 7... Nc6 {[%clk 0:02:58.2]} 8. e4 {[%clk 0:02:50.6]} 8...
Qc7 {[%clk 0:02:55.6]} 9. Nbd2 {[%clk 0:02:45.3]} 9... b5 {[%clk 0:02:49.5]} 10.
exd5 {[%clk 0:02:16.6]} 10... exd5 {[%clk 0:02:49.2]} 11. Nb3 {[%clk 0:02:15.9]}
11... a5 {[%clk 0:02:35.5]} 12. Bf4 {[%clk 0:01:54.2]} 12... Qb6 {[%clk
0:02:33]} 13. Ne5 {[%clk 0:01:44.3]} 13... a4 {[%clk 0:02:24.7]} 14. Nxc6 {[%clk
0:01:37.1]} 14... Qxc6 {[%clk 0:02:25.6]} 15. Nd2 {[%clk 0:01:32.6]} 15... Be6
{[%clk 0:02:22.5]} 16. Rfe1 {[%clk 0:01:26.7]} 16... Rac8 {[%clk 0:02:16.5]} 17.
Nf3 {[%clk 0:01:15.9]} 17... Bd6 {[%clk 0:02:07.8]} 18. Ne5 {[%clk 0:01:12]}
18... Qc7 {[%clk 0:01:56.2]} 19. c4 {[%clk 0:01:02.3]} 19... dxc4 {[%clk
0:01:45.2]} 20. dxc4 {[%clk 0:01:03.2]} 20... bxc4 {[%clk 0:01:45.1]} 21. Qxa4
{[%clk 0:01:00.7]} 21... Rfe8 {[%clk 0:01:33.2]} 22. Rad1 {[%clk 0:00:51.3]}
22... Rcd8 {[%clk 0:01:14.3]} 23. Rxd6 {[%clk 0:00:47.8]} 23... Qxd6 {[%clk
0:01:09.5]} 24. Nxf7 {[%clk 0:00:46.4]} 24... Qd7 {[%clk 0:00:55.8]} 25. Qxd7
{[%clk 0:00:22.3]} 25... Rxd7 {[%clk 0:00:55.4]} 26. Nd6 {[%clk 0:00:22.7]}
26... Ree7 {[%clk 0:00:47.4]} 27. Nc8 {[%clk 0:00:20.7]} 27... Re8 {[%clk
0:00:41.8]} 28. Nd6 {[%clk 0:00:20.2]} 28... Ree7 {[%clk 0:00:37.6]} 29. Bc6
{[%clk 0:00:20.8]} 29... Rd8 {[%clk 0:00:31.9]} 30. Nb7 {[%clk 0:00:20.2]} 30...
Rc8 {[%clk 0:00:28.7]} 31. Bd6 {[%clk 0:00:20.7]} 31... Rf7 {[%clk 0:00:20.8]}
32. Rxe6 {[%clk 0:00:19.6]} 32... Rxc6 {[%clk 0:00:20.9]} 33. Nd8 {[%clk
0:00:20.3]} 33... Ne4 {[%clk 0:00:10.4]} 34. Re8+ {[%clk 0:00:19.9]} 1-0

[Event "*** SCC Grand Prix: Titled Tuesday Blitz"]
[Site "Chess.com"]
[Date "2020.07.07"]
[Round "6"]
[White "EvgenyT"]
[Black "Semen_Khanin"]
[Result "1-0"]
[WhiteElo "2882"]
[BlackElo "2709"]
[TimeControl "180+1"]
[EndTime "11:06:12 PDT"]
[Termination "EvgenyT won by resignation"]

1. d4 {[%clk 0:02:59.4]} 1... Nf6 {[%clk 0:03:00.1]} 2. Nf3 {[%clk 0:02:59.2]}
2... g6 {[%clk 0:03:00.3]} 3. Bg5 {[%clk 0:02:58.3]} 3... Bg7 {[%clk 0:03:00.4]}
4. Nbd2 {[%clk 0:02:58.1]} 4... O-O {[%clk 0:02:59.4]} 5. c3 {[%clk 0:02:56.9]}
5... h6 {[%clk 0:02:58]} 6. Bh4 {[%clk 0:02:56.7]} 6... d6 {[%clk 0:02:58]} 7.
e4 {[%clk 0:02:56.3]} 7... c5 {[%clk 0:02:57.5]} 8. d5 {[%clk 0:02:55.9]} 8...
g5 {[%clk 0:02:49.1]} 9. Bg3 {[%clk 0:02:53.4]} 9... Nh5 {[%clk 0:02:37.5]} 10.
Nxg5 {[%clk 0:02:04]} 10... Nxg3 {[%clk 0:02:37]} 11. hxg3 {[%clk 0:02:04]}
11... hxg5 {[%clk 0:02:37.3]} 12. Qh5 {[%clk 0:02:03.5]} 12... f6 {[%clk
0:02:34.3]} 13. O-O-O {[%clk 0:01:42.9]} 13... Qe8 {[%clk 0:02:25.9]} 14. Qh7+
{[%clk 0:01:42]} 14... Kf7 {[%clk 0:02:26.1]} 15. Be2 {[%clk 0:01:29]} 15... g4
{[%clk 0:02:25.6]} 16. e5 {[%clk 0:01:01.3]} 16... dxe5 {[%clk 0:01:52.3]} 17.
Bd3 {[%clk 0:00:51.6]} 17... f5 {[%clk 0:01:47.7]} 18. Bxf5 {[%clk 0:00:50]}
18... Bxf5 {[%clk 0:01:46.3]} 19. Qxf5+ {[%clk 0:00:49.8]} 19... Kg8 {[%clk
0:01:37.3]} 20. Qh7+ {[%clk 0:00:45.1]} 20... Kf7 {[%clk 0:01:37.6]} 21. Ne4
{[%clk 0:00:38.2]} 21... Rh8 {[%clk 0:01:20.3]} 22. Ng5+ {[%clk 0:00:35.2]}
22... Kf6 {[%clk 0:01:20.4]} 23. Ne4+ {[%clk 0:00:19.9]} 23... Kf7 {[%clk
0:01:20.5]} 24. Qf5+ {[%clk 0:00:19.6]} 24... Kg8 {[%clk 0:01:16.7]} 25. Rxh8+
{[%clk 0:00:17]} 25... Bxh8 {[%clk 0:01:07.1]} 26. Rh1 {[%clk 0:00:16.7]} 26...
Bg7 {[%clk 0:00:54.1]} 27. Ng5 {[%clk 0:00:16.5]} 27... e6 {[%clk 0:00:17.7]}
28. Qh7+ {[%clk 0:00:14.9]} 28... Kf8 {[%clk 0:00:17.6]} 29. Nxe6+ {[%clk
0:00:14.4]} 29... Ke7 {[%clk 0:00:17.8]} 30. Qxg7+ {[%clk 0:00:14.5]} 30... Qf7
{[%clk 0:00:18]} 31. Qxe5 {[%clk 0:00:14.4]} 31... Nd7 {[%clk 0:00:17.4]} 32.
d6+ {[%clk 0:00:14.5]} 32... Ke8 {[%clk 0:00:15.5]} 33. Rh8+ {[%clk 0:00:13.6]}
1-0

[Event "*** SCC Grand Prix: Titled Tuesday Blitz"]
[Site "Chess.com"]
[Date "2020.07.07"]
[Round "6"]
[White "Trickov"]
[Black "AquivaRubinstein"]
[Result "0-1"]
[WhiteElo "2325"]
[BlackElo "2468"]
[TimeControl "180+1"]
[EndTime "11:06:12 PDT"]
[Termination "AquivaRubinstein won by resignation"]

1. d4 {[%clk 0:02:59.7]} 1... Nf6 {[%clk 0:02:59.5]} 2. Nf3 {[%clk 0:02:58]}
2... e6 {[%clk 0:02:59.2]} 3. g3 {[%clk 0:02:57.5]} 3... d5 {[%clk 0:02:55.9]}
4. Bg2 {[%clk 0:02:57.5]} 4... Be7 {[%clk 0:02:56.2]} 5. c4 {[%clk 0:02:57.1]}
5... O-O {[%clk 0:02:55.2]} 6. O-O {[%clk 0:02:57.5]} 6... dxc4 {[%clk
0:02:55.4]} 7. Na3 {[%clk 0:02:55.8]} 7... Bxa3 {[%clk 0:02:48.2]} 8. bxa3
{[%clk 0:02:55.4]} 8... Nbd7 {[%clk 0:02:42.1]} 9. a4 {[%clk 0:02:51.7]} 9... a5
{[%clk 0:02:41.3]} 10. Ba3 {[%clk 0:02:50.2]} 10... Re8 {[%clk 0:02:41.2]} 11.
Qc2 {[%clk 0:02:47.2]} 11... Nb6 {[%clk 0:02:40.7]} 12. Rfd1 {[%clk 0:02:45.5]}
12... Bd7 {[%clk 0:02:40.4]} 13. Rd2 {[%clk 0:02:36.7]} 13... Bxa4 {[%clk
0:02:40]} 14. Qc1 {[%clk 0:02:36.7]} 14... Ne4 {[%clk 0:02:33.4]} 15. Rb2 {[%clk
0:02:18.9]} 15... c3 {[%clk 0:02:33.3]} 16. Rc2 {[%clk 0:02:12.1]} 16... Bxc2
{[%clk 0:02:31.9]} 17. Qxc2 {[%clk 0:02:11.7]} 17... Nd6 {[%clk 0:02:20.8]} 18.
e3 {[%clk 0:02:02.8]} 18... Nb5 {[%clk 0:02:11.7]} 19. Bc5 {[%clk 0:02:01.3]}
19... Nd5 {[%clk 0:02:04.5]} 20. a4 {[%clk 0:01:58.4]} 20... Nb4 {[%clk
0:02:03.8]} 21. Qb3 {[%clk 0:01:56.3]} 21... Nd6 {[%clk 0:01:58.4]} 22. Bxb4
{[%clk 0:01:54.3]} 22... axb4 {[%clk 0:01:57.7]} 23. Qxb4 {[%clk 0:01:54.3]}
23... c6 {[%clk 0:01:44.2]} 24. Qxc3 {[%clk 0:01:51]} 24... Qa5 {[%clk
0:01:40.9]} 25. Qa3 {[%clk 0:01:48.2]} 25... Nc4 {[%clk 0:01:37.9]} 26. Qc1
{[%clk 0:01:42.5]} 26... b5 {[%clk 0:01:34.6]} 27. Bf1 {[%clk 0:01:40.2]} 27...
Qb4 {[%clk 0:01:11]} 28. Bxc4 {[%clk 0:01:27.2]} 28... bxc4 {[%clk 0:01:08.7]}
29. Ne5 {[%clk 0:01:23.3]} 29... c3 {[%clk 0:01:08.3]} 30. Nxc6 {[%clk
0:01:21.2]} 30... Qb2 {[%clk 0:00:34.9]} 31. a5 {[%clk 0:01:16.2]} 31... h5
{[%clk 0:00:31.8]} 32. a6 {[%clk 0:01:07.5]} 32... Rxa6 {[%clk 0:00:20.3]} 0-1

[Event "*** SCC Grand Prix: Titled Tuesday Blitz"]
[Site "Chess.com"]
[Date "2020.07.07"]
[Round "6"]
[White "Harry_Rakkel"]
[Black "Xeniya2005"]
[Result "1-0"]
[WhiteElo "2556"]
[BlackElo "2360"]
[TimeControl "180+1"]
[EndTime "11:06:14 PDT"]
[Termination "Harry_Rakkel won by checkmate"]

1. d4 {[%clk 0:03:00.9]} 1... Nf6 {[%clk 0:02:59.6]} 2. c4 {[%clk 0:03:00.7]}
2... b6 {[%clk 0:02:59.6]} 3. Nc3 {[%clk 0:02:59.1]} 3... Bb7 {[%clk 0:02:59.5]}
4. d5 {[%clk 0:02:55.5]} 4... e6 {[%clk 0:02:52.2]} 5. e4 {[%clk 0:02:54.5]}
5... exd5 {[%clk 0:02:51.8]} 6. exd5 {[%clk 0:02:51.8]} 6... Bc5 {[%clk
0:02:51.1]} 7. Qe2+ {[%clk 0:02:47.9]} 7... Be7 {[%clk 0:02:44.5]} 8. Bf4 {[%clk
0:02:31.4]} 8... O-O {[%clk 0:02:43.3]} 9. O-O-O {[%clk 0:02:21.2]} 9... Re8
{[%clk 0:02:36]} 10. Qc2 {[%clk 0:02:20.4]} 10... Na6 {[%clk 0:02:31.7]} 11. Nf3
{[%clk 0:02:15.8]} 11... h6 {[%clk 0:02:29.4]} 12. Nd4 {[%clk 0:02:07.8]} 12...
Bc5 {[%clk 0:02:25.2]} 13. Nf5 {[%clk 0:02:02.5]} 13... Nb4 {[%clk 0:02:22.1]}
14. Qd2 {[%clk 0:01:54.6]} 14... Ne4 {[%clk 0:02:03.5]} 15. Nxe4 {[%clk
0:01:52.6]} 15... Rxe4 {[%clk 0:02:02.4]} 16. f3 {[%clk 0:01:42]} 16... Re8
{[%clk 0:01:52.8]} 17. a3 {[%clk 0:01:40.1]} 17... Na6 {[%clk 0:01:48.3]} 18.
Bd3 {[%clk 0:01:30.5]} 18... Qf6 {[%clk 0:01:44.6]} 19. g4 {[%clk 0:01:26.6]}
19... g5 {[%clk 0:01:28.6]} 20. Bg3 {[%clk 0:00:59.7]} 20... d6 {[%clk
0:00:58.8]} 21. Rde1 {[%clk 0:00:42.6]} 21... c6 {[%clk 0:00:48.8]} 22. h4
{[%clk 0:00:38.6]} 22... Rxe1+ {[%clk 0:00:43.5]} 23. Rxe1 {[%clk 0:00:37.3]}
23... cxd5 {[%clk 0:00:38.7]} 24. hxg5 {[%clk 0:00:35.9]} 24... hxg5 {[%clk
0:00:37.4]} 25. cxd5 {[%clk 0:00:32.5]} 25... Bxa3 {[%clk 0:00:22.4]} 26. Ne7+
{[%clk 0:00:23.7]} 26... Kf8 {[%clk 0:00:20.4]} 27. bxa3 {[%clk 0:00:23.5]}
27... Re8 {[%clk 0:00:16.1]} 28. Nc6 {[%clk 0:00:21]} 28... Qa1+ {[%clk
0:00:13.8]} 29. Bb1 {[%clk 0:00:20.4]} 29... Qxa3+ {[%clk 0:00:13.6]} 30. Qb2
{[%clk 0:00:19.8]} 30... Qc5+ {[%clk 0:00:12.2]} 31. Bc2 {[%clk 0:00:15.9]}
31... Rxe1+ {[%clk 0:00:11.1]} 32. Bxe1 {[%clk 0:00:16.8]} 32... Qxd5 {[%clk
0:00:11]} 33. Qh8# {[%clk 0:00:15.1]} 1-0

[Event "*** SCC Grand Prix: Titled Tuesday Blitz"]
[Site "Chess.com"]
[Date "2020.07.07"]
[Round "6"]
[White "AccioChess"]
[Black "KobyKalavannan"]
[Result "1-0"]
[WhiteElo "2498"]
[BlackElo "2623"]
[TimeControl "180+1"]
[EndTime "11:06:15 PDT"]
[Termination "AccioChess won by resignation"]

1. e4 {[%clk 0:03:00.9]} 1... c5 {[%clk 0:02:54.2]} 2. Nf3 {[%clk 0:02:59.3]}
2... Nc6 {[%clk 0:02:53.7]} 3. Nc3 {[%clk 0:02:58.5]} 3... g6 {[%clk 0:02:52.9]}
4. d4 {[%clk 0:02:47.8]} 4... cxd4 {[%clk 0:02:52.6]} 5. Nxd4 {[%clk 0:02:48.7]}
5... Bg7 {[%clk 0:02:53.3]} 6. Be3 {[%clk 0:02:49.1]} 6... Nf6 {[%clk
0:02:31.9]} 7. Bc4 {[%clk 0:02:48.6]} 7... O-O {[%clk 0:02:32]} 8. Bb3 {[%clk
0:02:48.6]} 8... Re8 {[%clk 0:02:32.3]} 9. O-O {[%clk 0:02:38.7]} 9... d6 {[%clk
0:02:29.2]} 10. h3 {[%clk 0:02:23.9]} 10... Na5 {[%clk 0:02:28.9]} 11. Qd2
{[%clk 0:02:19.4]} 11... b6 {[%clk 0:02:28.5]} 12. Bh6 {[%clk 0:01:58.6]} 12...
Nxb3 {[%clk 0:02:27.8]} 13. axb3 {[%clk 0:01:57.9]} 13... Bb7 {[%clk 0:02:25.8]}
14. Rfe1 {[%clk 0:01:56.9]} 14... Bh8 {[%clk 0:02:24]} 15. b4 {[%clk 0:01:42.1]}
15... d5 {[%clk 0:02:22.9]} 16. e5 {[%clk 0:01:38.8]} 16... Ne4 {[%clk
0:02:21.7]} 17. Nxe4 {[%clk 0:01:22.7]} 17... dxe4 {[%clk 0:02:22.6]} 18. f4
{[%clk 0:01:10.8]} 18... exf3 {[%clk 0:02:09.2]} 19. Nxf3 {[%clk 0:01:10.6]}
19... Qxd2 {[%clk 0:01:44.2]} 20. Nxd2 {[%clk 0:00:58.9]} 20... f6 {[%clk
0:01:44.3]} 21. Bf4 {[%clk 0:00:54.6]} 21... g5 {[%clk 0:01:42.3]} 22. Bg3
{[%clk 0:00:53.5]} 22... f5 {[%clk 0:01:41.3]} 23. c3 {[%clk 0:00:49.9]} 23...
Red8 {[%clk 0:01:38.4]} 24. Re2 {[%clk 0:00:49.4]} 24... Rd3 {[%clk 0:01:33.3]}
25. Be1 {[%clk 0:00:35.3]} 25... a6 {[%clk 0:01:30.9]} 26. Nb3 {[%clk
0:00:34.8]} 26... Rad8 {[%clk 0:01:24.7]} 27. Nd4 {[%clk 0:00:34.2]} 27... Rd5
{[%clk 0:01:17.2]} 28. Nxf5 {[%clk 0:00:33.6]} 28... Kf7 {[%clk 0:01:14.1]} 29.
Bg3 {[%clk 0:00:21.9]} 29... e6 {[%clk 0:01:12.8]} 30. Nd6+ {[%clk 0:00:18.8]}
30... Rxd6 {[%clk 0:01:08.7]} 31. exd6 {[%clk 0:00:19.7]} 31... Rxg3 {[%clk
0:01:09.6]} 32. Rf1+ {[%clk 0:00:20.2]} 32... Ke8 {[%clk 0:01:07.7]} 33. Rxe6+
{[%clk 0:00:20.1]} 33... Kd8 {[%clk 0:00:42.7]} 34. Rf8+ {[%clk 0:00:19]} 34...
Kd7 {[%clk 0:00:43.3]} 35. Re7+ {[%clk 0:00:19.2]} 35... Kxd6 {[%clk 0:00:42.9]}
36. Rxb7 {[%clk 0:00:19.2]} 36... Be5 {[%clk 0:00:41.7]} 37. Rxb6+ {[%clk
0:00:19.1]} 37... Kd5 {[%clk 0:00:42.1]} 38. Rxa6 {[%clk 0:00:18.7]} 38... Bf4
{[%clk 0:00:41.2]} 39. Ra5+ {[%clk 0:00:18.2]} 39... Kc4 {[%clk 0:00:41.6]} 40.
Kf2 {[%clk 0:00:18.1]} 40... Rd3 {[%clk 0:00:41.3]} 41. Rxf4+ {[%clk 0:00:17.8]}
41... gxf4 {[%clk 0:00:41.2]} 42. Rc5+ {[%clk 0:00:18.4]} 42... Kb3 {[%clk
0:00:41.3]} 43. b5 {[%clk 0:00:19]} 43... Kxb2 {[%clk 0:00:40.9]} 44. b6 {[%clk
0:00:19.4]} 44... Rd8 {[%clk 0:00:39.7]} 45. b7 {[%clk 0:00:19.5]} 45... Rb8
{[%clk 0:00:39.8]} 46. Rc7 {[%clk 0:00:20.1]} 46... Kb3 {[%clk 0:00:39.5]} 47.
Kf3 {[%clk 0:00:20.5]} 47... h5 {[%clk 0:00:39.6]} 48. Kxf4 {[%clk 0:00:20.8]}
1-0

[Event "*** SCC Grand Prix: Titled Tuesday Blitz"]
[Site "Chess.com"]
[Date "2020.07.07"]
[Round "6"]
[White "Kate1606"]
[Black "Morshynska"]
[Result "0-1"]
[WhiteElo "1419"]
[BlackElo "2184"]
[TimeControl "180+1"]
[EndTime "11:06:15 PDT"]
[Termination "Morshynska won on time"]

1. e4 {[%clk 0:02:47.2]} 1... Nc6 {[%clk 0:02:59]} 2. d4 {[%clk 0:02:44.8]} 2...
d6 {[%clk 0:02:58.9]} 3. d5 {[%clk 0:02:36.9]} 3... Ne5 {[%clk 0:02:50.2]} 4. f4
{[%clk 0:02:36]} 4... Ng6 {[%clk 0:02:49.7]} 5. Nf3 {[%clk 0:02:34.3]} 5... e6
{[%clk 0:02:42.7]} 6. dxe6 {[%clk 0:02:31.3]} 6... fxe6 {[%clk 0:02:43.6]} 7.
Bd3 {[%clk 0:02:30.7]} 7... Nf6 {[%clk 0:02:37]} 8. O-O {[%clk 0:02:29.9]} 8...
e5 {[%clk 0:02:04.9]} 9. fxe5 {[%clk 0:02:15.2]} 9... dxe5 {[%clk 0:02:00.4]}
10. Nc3 {[%clk 0:02:13.4]} 10... Bc5+ {[%clk 0:01:53]} 11. Kh1 {[%clk
0:02:11.8]} 11... O-O {[%clk 0:01:50.5]} 12. Bc4+ {[%clk 0:02:10.9]} 12... Kh8
{[%clk 0:01:50]} 13. Qxd8 {[%clk 0:02:01]} 13... Rxd8 {[%clk 0:01:50.9]} 14. Ng5
{[%clk 0:02:00.9]} 14... Rf8 {[%clk 0:01:31.1]} 15. h3 {[%clk 0:01:58.3]} 15...
h6 {[%clk 0:01:24.6]} 16. Nf3 {[%clk 0:01:24.3]} 16... Nh5 {[%clk 0:01:09.3]}
17. Kh2 {[%clk 0:01:23.5]} 17... c6 {[%clk 0:01:07.2]} 18. a3 {[%clk 0:01:22.2]}
18... a5 {[%clk 0:01:05.3]} 19. Bd2 {[%clk 0:01:14.7]} 19... b5 {[%clk
0:01:00.7]} 20. Ba2 {[%clk 0:01:12.6]} 20... Ba6 {[%clk 0:00:51.8]} 21. Rfd1
{[%clk 0:00:46]} 21... Nhf4 {[%clk 0:00:43.8]} 22. Bxf4 {[%clk 0:00:20.4]} 22...
Rxf4 {[%clk 0:00:44.7]} 23. Rd7 {[%clk 0:00:16.9]} 23... Raf8 {[%clk 0:00:40.1]}
24. Rc7 {[%clk 0:00:15.9]} 24... R4f6 {[%clk 0:00:36.3]} 25. Rd1 {[%clk
0:00:14.6]} 25... Bc8 {[%clk 0:00:25.1]} 26. Ne2 {[%clk 0:00:12.5]} 26... Bb6
{[%clk 0:00:18.6]} 27. Rcd7 {[%clk 0:00:06.9]} 27... Bxd7 {[%clk 0:00:17.8]} 28.
Rxd7 {[%clk 0:00:07.8]} 28... a4 {[%clk 0:00:17.7]} 29. Ng3 {[%clk 0:00:06.8]}
29... Rd8 {[%clk 0:00:14.8]} 0-1

[Event "*** SCC Grand Prix: Titled Tuesday Blitz"]
[Site "Chess.com"]
[Date "2020.07.07"]
[Round "6"]
[White "binbin239"]
[Black "Gareth-Bale11"]
[Result "1-0"]
[WhiteElo "2523"]
[BlackElo "2725"]
[TimeControl "180+1"]
[EndTime "11:06:16 PDT"]
[Termination "binbin239 won by checkmate"]

1. d4 {[%clk 0:03:00.9]} 1... Nf6 {[%clk 0:02:48.6]} 2. c4 {[%clk 0:03:00.4]}
2... e6 {[%clk 0:02:48.7]} 3. Nf3 {[%clk 0:03:00]} 3... d5 {[%clk 0:02:45.7]} 4.
g3 {[%clk 0:02:59.9]} 4... Bb4+ {[%clk 0:02:45.2]} 5. Bd2 {[%clk 0:02:59.1]}
5... Be7 {[%clk 0:02:45.1]} 6. Bg2 {[%clk 0:02:58.7]} 6... O-O {[%clk
0:02:44.9]} 7. O-O {[%clk 0:02:58.6]} 7... Nbd7 {[%clk 0:02:42.4]} 8. Qc2 {[%clk
0:02:57.9]} 8... Ne4 {[%clk 0:02:42.4]} 9. Bf4 {[%clk 0:02:56.7]} 9... c6 {[%clk
0:02:40.8]} 10. Nbd2 {[%clk 0:02:54.9]} 10... g5 {[%clk 0:02:40.2]} 11. Be3
{[%clk 0:02:52]} 11... Nd6 {[%clk 0:02:40.2]} 12. Ne5 {[%clk 0:02:43.7]} 12...
Nxe5 {[%clk 0:02:37.9]} 13. dxe5 {[%clk 0:02:43.4]} 13... Nf5 {[%clk 0:02:38.8]}
14. cxd5 {[%clk 0:02:23.2]} 14... exd5 {[%clk 0:02:37.8]} 15. Bc5 {[%clk
0:02:21.8]} 15... Bxc5 {[%clk 0:02:32.6]} 16. Qxc5 {[%clk 0:02:21.5]} 16... Qb6
{[%clk 0:02:31.5]} 17. Qc2 {[%clk 0:02:09]} 17... Nd4 {[%clk 0:02:16.5]} 18. Qd3
{[%clk 0:02:02.8]} 18... Bf5 {[%clk 0:02:04.9]} 19. e4 {[%clk 0:02:02.5]} 19...
dxe4 {[%clk 0:02:05.8]} 20. Nxe4 {[%clk 0:02:00.5]} 20... Kg7 {[%clk 0:01:59]}
21. Qd2 {[%clk 0:01:51.8]} 21... h6 {[%clk 0:01:49]} 22. Nd6 {[%clk 0:01:26.5]}
22... Bg6 {[%clk 0:01:41.7]} 23. Rfd1 {[%clk 0:01:25.5]} 23... Nf5 {[%clk
0:01:38.3]} 24. Nc4 {[%clk 0:01:21.3]} 24... Qc5 {[%clk 0:01:22.2]} 25. Qc3
{[%clk 0:01:18.4]} 25... Kh7 {[%clk 0:01:21.3]} 26. e6 {[%clk 0:01:14.2]} 26...
fxe6 {[%clk 0:01:15.8]} 27. Rd7+ {[%clk 0:01:13.1]} 27... Rf7 {[%clk 0:01:16]}
28. Rad1 {[%clk 0:01:11.1]} 28... Rf8 {[%clk 0:01:15.6]} 29. b4 {[%clk
0:01:04.9]} 29... Nxg3 {[%clk 0:00:53.9]} 30. hxg3 {[%clk 0:00:52.4]} 30...
Qxf2+ {[%clk 0:00:48]} 31. Kh2 {[%clk 0:00:51.7]} 31... h5 {[%clk 0:00:46.3]}
32. Ne5 {[%clk 0:00:43]} 32... Rxd7 {[%clk 0:00:30.9]} 33. Rxd7+ {[%clk
0:00:41.8]} 33... Kh6 {[%clk 0:00:31.8]} 34. Nf3 {[%clk 0:00:28.4]} 34... Rg8
{[%clk 0:00:25.9]} 35. Qf6 {[%clk 0:00:28.1]} 35... Qe3 {[%clk 0:00:26]} 36. Ne5
{[%clk 0:00:26.1]} 36... a6 {[%clk 0:00:20.2]} 37. Nf7+ {[%clk 0:00:25.8]} 37...
Kh7 {[%clk 0:00:19.7]} 38. Nxg5+ {[%clk 0:00:25.9]} 38... Kh6 {[%clk 0:00:20.2]}
39. Rh7# {[%clk 0:00:23.9]} 1-0